[Event "*** Titled Tuesday Blitz"]
[Site "Chess.com"]
[Date "2020.12.01"]
[Round "1"]
[White "Artyom_ChessMate"]
[Black "chessmadara"]
[Result "1-0"]
[WhiteElo "2536"]
[BlackElo "2199"]
[TimeControl "180+1"]
[EndTime "10:04:36 PST"]
[Termination "Artyom_ChessMate won by resignation"]

1. e4 {[%clk 0:02:59.7]} 1... c5 {[%clk 0:02:59.4]} 2. Nc3 {[%clk 0:02:57.6]}
2... d6 {[%clk 0:02:57.2]} 3. f4 {[%clk 0:02:57.7]} 3... g6 {[%clk 0:02:53.9]}
4. Nf3 {[%clk 0:02:52.2]} 4... Bg7 {[%clk 0:02:53.5]} 5. Bc4 {[%clk 0:02:52.4]}
5... Nc6 {[%clk 0:02:48.8]} 6. O-O {[%clk 0:02:52]} 6... e6 {[%clk 0:02:48.9]}
7. d4 {[%clk 0:02:52.2]} 7... cxd4 {[%clk 0:02:48.3]} 8. Nb5 {[%clk 0:02:52.3]}
8... Nge7 {[%clk 0:02:46.8]} 9. Bb3 {[%clk 0:02:52.4]} 9... Na5 {[%clk
0:02:46.2]} 10. Nbxd4 {[%clk 0:02:49.7]} 10... O-O {[%clk 0:02:41.6]} 11. Be3
{[%clk 0:02:49.5]} 11... Nxb3 {[%clk 0:02:39.8]} 12. axb3 {[%clk 0:02:50.4]}
12... Nc6 {[%clk 0:02:35]} 13. Nxc6 {[%clk 0:02:44.9]} 13... bxc6 {[%clk
0:02:34.7]} 14. Rxa7 {[%clk 0:02:45.8]} 14... Rxa7 {[%clk 0:02:31.8]} 15. Bxa7
{[%clk 0:02:46.7]} 15... c5 {[%clk 0:02:23.9]} 16. Qd2 {[%clk 0:02:31.6]} 16...
Ba6 {[%clk 0:02:22.2]} 17. Ra1 {[%clk 0:02:27.6]} 17... Bb7 {[%clk 0:02:21.8]}
18. Rd1 {[%clk 0:02:10.6]} 18... Bxe4 {[%clk 0:02:08.4]} 19. Bxc5 {[%clk
0:02:00.7]} 19... Qc7 {[%clk 0:01:38.9]} 20. Bxd6 {[%clk 0:01:55.7]} 20... Qb6+
{[%clk 0:01:38.9]} 21. Qf2 {[%clk 0:01:55.8]} 21... Qxf2+ {[%clk 0:01:34.5]} 22.
Kxf2 {[%clk 0:01:56.7]} 22... Rd8 {[%clk 0:01:34.8]} 23. c4 {[%clk 0:01:51.2]}
23... Bxb2 {[%clk 0:01:33.2]} 24. c5 {[%clk 0:01:49.1]} 24... Ba3 {[%clk
0:01:32.4]} 25. Ra1 {[%clk 0:01:43]} 25... Bb4 {[%clk 0:01:29.3]} 26. Ra4 {[%clk
0:01:43.1]} 26... Bxf3 {[%clk 0:01:25.8]} 27. Kxf3 {[%clk 0:01:43]} 27... Bc3
{[%clk 0:01:18.1]} 28. Rc4 {[%clk 0:01:42.7]} 28... Ba5 {[%clk 0:01:13.6]} 29.
b4 {[%clk 0:01:40.7]} 29... Bb6 {[%clk 0:01:11.6]} 30. cxb6 {[%clk 0:01:39]}
30... Rxd6 {[%clk 0:01:11.2]} 31. Rc8+ {[%clk 0:01:39.1]} 31... Kg7 {[%clk
0:01:10.6]} 32. b7 {[%clk 0:01:39.6]} 1-0

[Event "*** Titled Tuesday Blitz"]
[Site "Chess.com"]
[Date "2020.12.01"]
[Round "1"]
[White "mjray79"]
[Black "Hikaru"]
[Result "0-1"]
[WhiteElo "2458"]
[BlackElo "3195"]
[TimeControl "180+1"]
[EndTime "10:04:37 PST"]
[Termination "Hikaru won by checkmate"]

1. d4 {[%clk 0:03:00.6]} 1... g6 {[%clk 0:02:55.8]} 2. c4 {[%clk 0:03:00.9]}
2... Bg7 {[%clk 0:02:55.6]} 3. e4 {[%clk 0:03:00.7]} 3... Nc6 {[%clk 0:02:55.3]}
4. Ne2 {[%clk 0:02:57.6]} 4... d6 {[%clk 0:02:52.8]} 5. Nbc3 {[%clk 0:02:52.9]}
5... e5 {[%clk 0:02:52.4]} 6. d5 {[%clk 0:02:50.8]} 6... Nce7 {[%clk 0:02:50]}
7. Be3 {[%clk 0:02:47.4]} 7... f5 {[%clk 0:02:49.6]} 8. exf5 {[%clk 0:02:47.4]}
8... gxf5 {[%clk 0:02:46]} 9. f4 {[%clk 0:02:46.8]} 9... Nf6 {[%clk 0:02:44.4]}
10. h3 {[%clk 0:02:38]} 10... O-O {[%clk 0:02:39.4]} 11. Ng3 {[%clk 0:02:34.2]}
11... exf4 {[%clk 0:02:37.9]} 12. Bxf4 {[%clk 0:02:33.6]} 12... Ng6 {[%clk
0:02:38.6]} 13. Bg5 {[%clk 0:02:19.8]} 13... h6 {[%clk 0:02:33.7]} 14. Bd2
{[%clk 0:02:10.3]} 14... f4 {[%clk 0:02:29.6]} 15. Nh5 {[%clk 0:02:03.8]} 15...
Re8+ {[%clk 0:02:24.4]} 16. Kf2 {[%clk 0:01:54.3]} 16... Ng4+ {[%clk 0:01:53.8]}
17. hxg4 {[%clk 0:01:36.2]} 17... Bd4+ {[%clk 0:01:51.4]} 18. Kf3 {[%clk
0:01:36.4]} 18... Qg5 {[%clk 0:01:52.1]} 19. Nf6+ {[%clk 0:01:17.4]} 19... Bxf6
{[%clk 0:01:49.5]} 20. Be2 {[%clk 0:00:34.1]} 20... Bd4 {[%clk 0:01:47.8]} 21.
g3 {[%clk 0:00:34.2]} 21... Qxg4+ {[%clk 0:01:44.8]} 22. Kg2 {[%clk 0:00:34.4]}
22... Qxg3+ {[%clk 0:01:45.7]} 23. Kf1 {[%clk 0:00:34.5]} 23... Qf2# {[%clk
0:01:46.6]} 0-1

[Event "*** Titled Tuesday Blitz"]
[Site "Chess.com"]
[Date "2020.12.01"]
[Round "1"]
[White "Chamal_Gedgafov"]
[Black "Kavyev_Ruslan"]
[Result "0-1"]
[WhiteElo "2166"]
[BlackElo "2519"]
[TimeControl "180+1"]
[EndTime "10:04:39 PST"]
[Termination "Kavyev_Ruslan won by checkmate"]

1. d4 {[%clk 0:03:00.1]} 1... Nf6 {[%clk 0:02:59.6]} 2. c4 {[%clk 0:02:57.4]}
2... g6 {[%clk 0:02:59.7]} 3. Nc3 {[%clk 0:02:57]} 3... d5 {[%clk 0:03:00]} 4.
cxd5 {[%clk 0:02:57]} 4... Nxd5 {[%clk 0:03:00.9]} 5. e4 {[%clk 0:02:57.2]} 5...
Nxc3 {[%clk 0:03:01.2]} 6. bxc3 {[%clk 0:02:58]} 6... Bg7 {[%clk 0:03:02.1]} 7.
Be3 {[%clk 0:02:57.9]} 7... c5 {[%clk 0:03:02.3]} 8. Qd2 {[%clk 0:02:58.6]} 8...
cxd4 {[%clk 0:03:00.8]} 9. cxd4 {[%clk 0:02:57.7]} 9... Nc6 {[%clk 0:03:01.5]}
10. Nf3 {[%clk 0:02:56.9]} 10... O-O {[%clk 0:02:59.9]} 11. Rc1 {[%clk
0:02:53.4]} 11... Bg4 {[%clk 0:02:59.4]} 12. d5 {[%clk 0:02:50.6]} 12... Bxf3
{[%clk 0:02:59.6]} 13. gxf3 {[%clk 0:02:49.8]} 13... Ne5 {[%clk 0:03:00.5]} 14.
Be2 {[%clk 0:02:50.2]} 14... Qd7 {[%clk 0:02:55.6]} 15. h3 {[%clk 0:02:49.2]}
15... b5 {[%clk 0:02:48.7]} 16. Kf1 {[%clk 0:02:40.6]} 16... Rac8 {[%clk
0:02:46.6]} 17. Kg2 {[%clk 0:02:40.3]} 17... e6 {[%clk 0:02:41.8]} 18. dxe6
{[%clk 0:02:24.9]} 18... Qxe6 {[%clk 0:02:42.1]} 19. Bxb5 {[%clk 0:02:14.9]}
19... Rcd8 {[%clk 0:02:38.4]} 20. Qe2 {[%clk 0:02:02.9]} 20... g5 {[%clk
0:02:32.3]} 21. Rhd1 {[%clk 0:01:50.6]} 21... h6 {[%clk 0:02:27.6]} 22. a4
{[%clk 0:01:39.8]} 22... Ng6 {[%clk 0:02:26]} 23. Rc6 {[%clk 0:01:30.6]} 23...
Qe5 {[%clk 0:02:15.4]} 24. Rxd8 {[%clk 0:01:09.4]} 24... Rxd8 {[%clk 0:02:12.9]}
25. Qc4 {[%clk 0:01:06.5]} 25... Nh4+ {[%clk 0:02:11.1]} 26. Kf1 {[%clk
0:00:58.2]} 26... Qh2 {[%clk 0:02:07.6]} 27. Ke2 {[%clk 0:00:55.6]} 27... Qh1
{[%clk 0:02:05.3]} 28. Rc8 {[%clk 0:00:35.5]} 28... Qd1# {[%clk 0:02:03.8]} 0-1

[Event "*** Titled Tuesday Blitz"]
[Site "Chess.com"]
[Date "2020.12.01"]
[Round "1"]
[White "tk22h"]
[Black "Susal_De_Silva"]
[Result "0-1"]
[WhiteElo "2317"]
[BlackElo "2642"]
[TimeControl "180+1"]
[EndTime "10:04:41 PST"]
[Termination "Susal_De_Silva won by resignation"]

1. d4 {[%clk 0:02:59]} 1... Nf6 {[%clk 0:02:59.8]} 2. Nf3 {[%clk 0:02:58.8]}
2... e6 {[%clk 0:03:00.1]} 3. Bg5 {[%clk 0:02:55.3]} 3... h6 {[%clk 0:02:59.5]}
4. Bxf6 {[%clk 0:02:54.9]} 4... Qxf6 {[%clk 0:02:59.5]} 5. e4 {[%clk 0:02:55.8]}
5... d6 {[%clk 0:02:59.9]} 6. Nc3 {[%clk 0:02:54.2]} 6... a6 {[%clk 0:02:58.3]}
7. Bd3 {[%clk 0:02:53.7]} 7... b6 {[%clk 0:02:58.3]} 8. Qe2 {[%clk 0:02:53.8]}
8... Bb7 {[%clk 0:02:58.3]} 9. O-O-O {[%clk 0:02:53.5]} 9... Qd8 {[%clk
0:02:55.9]} 10. Rhe1 {[%clk 0:02:52.5]} 10... g6 {[%clk 0:02:56.1]} 11. Kb1
{[%clk 0:02:52]} 11... Bg7 {[%clk 0:02:56.4]} 12. h4 {[%clk 0:02:52.2]} 12...
Nc6 {[%clk 0:02:53.1]} 13. d5 {[%clk 0:02:46.7]} 13... Ne5 {[%clk 0:02:42.2]}
14. Nxe5 {[%clk 0:02:45.5]} 14... Bxe5 {[%clk 0:02:43.1]} 15. dxe6 {[%clk
0:02:45.7]} 15... fxe6 {[%clk 0:02:44]} 16. g3 {[%clk 0:02:45.9]} 16... Qf6
{[%clk 0:02:43.5]} 17. f4 {[%clk 0:02:37]} 17... Bxc3 {[%clk 0:02:39.9]} 18. e5
{[%clk 0:02:37.3]} 18... Qf7 {[%clk 0:02:27.2]} 19. bxc3 {[%clk 0:02:33.2]}
19... d5 {[%clk 0:02:18.2]} 20. Qg4 {[%clk 0:02:32.9]} 20... Rg8 {[%clk
0:02:12.8]} 21. c4 {[%clk 0:02:26.9]} 21... d4 {[%clk 0:02:02.6]} 22. Be4 {[%clk
0:02:15.4]} 22... O-O-O {[%clk 0:01:58.7]} 23. Qf3 {[%clk 0:02:15.5]} 23... c5
{[%clk 0:01:55.3]} 24. Bxb7+ {[%clk 0:02:14.1]} 24... Qxb7 {[%clk 0:01:56.2]}
25. Qxb7+ {[%clk 0:02:14.3]} 25... Kxb7 {[%clk 0:01:57.1]} 26. Rd3 {[%clk
0:02:03.1]} 26... g5 {[%clk 0:01:43.6]} 27. hxg5 {[%clk 0:01:58.5]} 27... hxg5
{[%clk 0:01:42.9]} 28. c3 {[%clk 0:01:52.6]} 28... gxf4 {[%clk 0:01:38.5]} 29.
gxf4 {[%clk 0:01:52.1]} 29... dxc3 {[%clk 0:01:38.9]} 30. Rxc3 {[%clk
0:01:51.6]} 30... Rd4 {[%clk 0:01:32.6]} 31. Rf1 {[%clk 0:01:49.9]} 31... Rf8
{[%clk 0:01:30]} 32. f5 {[%clk 0:01:42.5]} 32... exf5 {[%clk 0:01:27.2]} 33. Re3
{[%clk 0:01:42.2]} 33... f4 {[%clk 0:01:25.9]} 34. e6 {[%clk 0:01:42.3]} 34...
fxe3 {[%clk 0:01:23]} 35. Rxf8 {[%clk 0:01:41.5]} 35... Re4 {[%clk 0:01:23.6]}
36. Rf1 {[%clk 0:01:34.2]} 36... Rxe6 {[%clk 0:01:22.1]} 0-1

[Event "*** Titled Tuesday Blitz"]
[Site "Chess.com"]
[Date "2020.12.01"]
[Round "1"]
[White "ZEN-22"]
[Black "GigaQuparadze"]
[Result "0-1"]
[WhiteElo "2438"]
[BlackElo "2910"]
[TimeControl "180+1"]
[EndTime "10:04:46 PST"]
[Termination "GigaQuparadze won by resignation"]

1. e4 {[%clk 0:02:57.5]} 1... c5 {[%clk 0:02:59.6]} 2. b4 {[%clk 0:02:56]} 2...
cxb4 {[%clk 0:02:59.1]} 3. a3 {[%clk 0:02:55.8]} 3... bxa3 {[%clk 0:03:00]} 4.
Nxa3 {[%clk 0:02:54.6]} 4... d6 {[%clk 0:02:58.9]} 5. d4 {[%clk 0:02:52.4]} 5...
Nf6 {[%clk 0:02:57.9]} 6. Bd3 {[%clk 0:02:52.1]} 6... g6 {[%clk 0:02:57.9]} 7.
Nf3 {[%clk 0:02:50.8]} 7... Bg7 {[%clk 0:02:57.9]} 8. e5 {[%clk 0:02:50.6]} 8...
dxe5 {[%clk 0:02:56.8]} 9. dxe5 {[%clk 0:02:49.9]} 9... Nd5 {[%clk 0:02:57]} 10.
Bb5+ {[%clk 0:02:45.4]} 10... Nc6 {[%clk 0:02:56.5]} 11. c4 {[%clk 0:02:45.1]}
11... Nb4 {[%clk 0:02:48.5]} 12. Qxd8+ {[%clk 0:02:29.1]} 12... Kxd8 {[%clk
0:02:49.4]} 13. O-O {[%clk 0:02:17.5]} 13... Be6 {[%clk 0:02:47.7]} 14. Ng5
{[%clk 0:02:16.2]} 14... Bxe5 {[%clk 0:02:37.2]} 15. Nxe6+ {[%clk 0:02:06.2]}
15... fxe6 {[%clk 0:02:37]} 16. Rb1 {[%clk 0:02:06.6]} 16... Kc7 {[%clk
0:02:33.7]} 17. Be3 {[%clk 0:02:05.5]} 17... Rhd8 {[%clk 0:02:20.8]} 18. c5
{[%clk 0:01:59.6]} 18... Bd4 {[%clk 0:02:14.6]} 19. Bxc6 {[%clk 0:01:46.9]}
19... Nxc6 {[%clk 0:02:15.5]} 20. Nb5+ {[%clk 0:01:45.7]} 20... Kc8 {[%clk
0:02:15.3]} 21. Nxd4 {[%clk 0:01:22.3]} 21... Nxd4 {[%clk 0:02:14.1]} 22. Rfd1
{[%clk 0:01:16]} 22... e5 {[%clk 0:02:12.1]} 23. Bg5 {[%clk 0:01:14.9]} 23...
Rd7 {[%clk 0:02:08.4]} 24. f4 {[%clk 0:01:12.9]} 24... exf4 {[%clk 0:02:06.1]}
25. Bxe7 {[%clk 0:01:09.7]} 25... Ne2+ {[%clk 0:02:05.5]} 26. Kf2 {[%clk
0:01:08.9]} 26... Rxe7 {[%clk 0:02:06]} 27. Re1 {[%clk 0:01:06.2]} 27... Kc7
{[%clk 0:02:05.7]} 28. Rxe2 {[%clk 0:00:55.1]} 28... Rxe2+ {[%clk 0:02:06.6]}
29. Kxe2 {[%clk 0:00:55.4]} 29... a5 {[%clk 0:02:06.1]} 30. Kf3 {[%clk 0:00:48]}
30... a4 {[%clk 0:02:06.3]} 31. Kxf4 {[%clk 0:00:47.7]} 31... a3 {[%clk
0:02:06.5]} 32. Ke5 {[%clk 0:00:47.7]} 32... a2 {[%clk 0:02:06.6]} 33. Ra1
{[%clk 0:00:47.2]} 33... Kc6 {[%clk 0:02:06.9]} 34. Kf6 {[%clk 0:00:46.1]} 34...
Kxc5 {[%clk 0:02:05.8]} 35. Kg7 {[%clk 0:00:46]} 35... b5 {[%clk 0:02:05.9]} 36.
Kxh7 {[%clk 0:00:45.8]} 36... b4 {[%clk 0:02:05.8]} 0-1

[Event "*** Titled Tuesday Blitz"]
[Site "Chess.com"]
[Date "2020.12.01"]
[Round "1"]
[White "Roza_Idrisova"]
[Black "Valeron76"]
[Result "0-1"]
[WhiteElo "2156"]
[BlackElo "2508"]
[TimeControl "180+1"]
[EndTime "10:04:52 PST"]
[Termination "Valeron76 won by resignation"]

1. d4 {[%clk 0:02:59.5]} 1... g6 {[%clk 0:02:58.9]} 2. c4 {[%clk 0:02:58.4]}
2... Bg7 {[%clk 0:02:59]} 3. e4 {[%clk 0:02:58.6]} 3... e6 {[%clk 0:02:58.8]} 4.
Nf3 {[%clk 0:02:56.1]} 4... Ne7 {[%clk 0:02:59]} 5. Be2 {[%clk 0:02:55.9]} 5...
d5 {[%clk 0:02:58.5]} 6. cxd5 {[%clk 0:02:53.5]} 6... exd5 {[%clk 0:02:57.5]} 7.
e5 {[%clk 0:02:53.7]} 7... O-O {[%clk 0:02:56.1]} 8. Nc3 {[%clk 0:02:53.8]} 8...
c5 {[%clk 0:02:54.9]} 9. Be3 {[%clk 0:02:42.1]} 9... cxd4 {[%clk 0:02:46.3]} 10.
Bxd4 {[%clk 0:02:41.1]} 10... Nbc6 {[%clk 0:02:43.6]} 11. O-O {[%clk 0:02:37.9]}
11... Be6 {[%clk 0:02:40.7]} 12. Re1 {[%clk 0:02:37.3]} 12... a6 {[%clk
0:02:38.3]} 13. a4 {[%clk 0:02:36.5]} 13... Nxd4 {[%clk 0:02:35.8]} 14. Qxd4
{[%clk 0:02:35.8]} 14... Nc6 {[%clk 0:02:32.1]} 15. Qf4 {[%clk 0:02:34.7]} 15...
Qb6 {[%clk 0:02:28.7]} 16. Rab1 {[%clk 0:02:13.9]} 16... Rac8 {[%clk 0:02:23.7]}
17. Bf1 {[%clk 0:02:13.3]} 17... Rfd8 {[%clk 0:02:16]} 18. h3 {[%clk 0:02:12.2]}
18... h6 {[%clk 0:02:13.2]} 19. Ne2 {[%clk 0:01:49.2]} 19... Bf5 {[%clk
0:02:07.6]} 20. Rbc1 {[%clk 0:01:46.3]} 20... Be4 {[%clk 0:02:04]} 21. Ned4
{[%clk 0:01:43.2]} 21... Nxd4 {[%clk 0:01:59.8]} 22. Nxd4 {[%clk 0:01:41]} 22...
Qxd4 {[%clk 0:01:55.9]} 23. Rxc8 {[%clk 0:01:40]} 23... Rxc8 {[%clk 0:01:55.3]}
24. e6 {[%clk 0:01:39.1]} 24... fxe6 {[%clk 0:01:52.2]} 25. Rc1 {[%clk
0:01:30.3]} 25... Rf8 {[%clk 0:01:48.4]} 26. Qc7 {[%clk 0:01:29.5]} 26... Qxf2+
{[%clk 0:01:45.4]} 27. Kh2 {[%clk 0:01:27.9]} 27... Qf4+ {[%clk 0:01:43.1]} 28.
Qxf4 {[%clk 0:01:27.2]} 28... Rxf4 {[%clk 0:01:43.4]} 29. Rc8+ {[%clk 0:01:03]}
29... Kh7 {[%clk 0:01:43.1]} 30. Be2 {[%clk 0:00:53.5]} 30... Rf2 {[%clk
0:01:42.8]} 31. Bd1 {[%clk 0:00:52.5]} 31... Rxg2+ {[%clk 0:01:42.4]} 0-1

[Event "*** Titled Tuesday Blitz"]
[Site "Chess.com"]
[Date "2020.12.01"]
[Round "1"]
[White "arminmusovic"]
[Black "coco_crc"]
[Result "1-0"]
[WhiteElo "2533"]
[BlackElo "2190"]
[TimeControl "180+1"]
[EndTime "10:04:53 PST"]
[Termination "arminmusovic won by checkmate"]

1. a3 {[%clk 0:03:00.4]} 1... e6 {[%clk 0:02:59.7]} 2. Nc3 {[%clk 0:03:00.5]}
2... Nf6 {[%clk 0:03:00.6]} 3. e4 {[%clk 0:03:01.4]} 3... d5 {[%clk 0:03:00.7]}
4. e5 {[%clk 0:03:01.9]} 4... Nfd7 {[%clk 0:03:00.3]} 5. f4 {[%clk 0:03:02.3]}
5... c5 {[%clk 0:03:00.6]} 6. Nf3 {[%clk 0:03:02.8]} 6... Nc6 {[%clk 0:03:01.1]}
7. g3 {[%clk 0:03:03]} 7... b6 {[%clk 0:02:58]} 8. Bh3 {[%clk 0:03:03.1]} 8...
Bb7 {[%clk 0:02:55.9]} 9. O-O {[%clk 0:03:03]} 9... h5 {[%clk 0:02:54.7]} 10. d3
{[%clk 0:03:02.9]} 10... g6 {[%clk 0:02:52.5]} 11. Bd2 {[%clk 0:03:02.2]} 11...
Be7 {[%clk 0:02:52.2]} 12. Qe2 {[%clk 0:03:02]} 12... a6 {[%clk 0:02:52.3]} 13.
Rae1 {[%clk 0:03:02.4]} 13... b5 {[%clk 0:02:52.3]} 14. Qd1 {[%clk 0:03:02.8]}
14... Qb6 {[%clk 0:02:44.9]} 15. Rf2 {[%clk 0:02:36.5]} 15... a5 {[%clk
0:02:44.6]} 16. a4 {[%clk 0:02:33.5]} 16... b4 {[%clk 0:02:39.3]} 17. Nb5 {[%clk
0:02:21.4]} 17... Na7 {[%clk 0:02:33.2]} 18. Nd6+ {[%clk 0:02:02.7]} 18... Bxd6
{[%clk 0:02:32.4]} 19. exd6 {[%clk 0:02:03.6]} 19... Qxd6 {[%clk 0:02:32.9]} 20.
Ng5 {[%clk 0:02:04.1]} 20... O-O {[%clk 0:01:42.1]} 21. Nxf7 {[%clk 0:02:00.7]}
21... Rxf7 {[%clk 0:01:41.3]} 22. Rxe6 {[%clk 0:01:59.9]} 22... Qf8 {[%clk
0:01:36.4]} 23. Rxg6+ {[%clk 0:01:58.2]} 23... Rg7 {[%clk 0:01:31.9]} 24. Qxh5
{[%clk 0:01:44.5]} 24... Rxg6 {[%clk 0:01:14.4]} 25. Qxg6+ {[%clk 0:01:43.1]}
25... Qg7 {[%clk 0:01:09.2]} 26. Qxg7+ {[%clk 0:01:42.7]} 26... Kxg7 {[%clk
0:01:10.1]} 27. Bxd7 {[%clk 0:01:43.3]} 27... Bc6 {[%clk 0:01:08.9]} 28. Be6
{[%clk 0:01:34.9]} 28... Re8 {[%clk 0:01:07.4]} 29. f5 {[%clk 0:01:34.8]} 29...
Bxa4 {[%clk 0:01:06.8]} 30. Bxd5 {[%clk 0:01:29.5]} 30... Bc6 {[%clk 0:01:06.9]}
31. f6+ {[%clk 0:01:29.2]} 31... Kf8 {[%clk 0:01:06.3]} 32. Bh6# {[%clk
0:01:28.4]} 1-0

[Event "*** Titled Tuesday Blitz"]
[Site "Chess.com"]
[Date "2020.12.01"]
[Round "1"]
[White "MFBerna"]
[Black "Alexsur1981"]
[Result "0-1"]
[WhiteElo "2409"]
[BlackElo "2830"]
[TimeControl "180+1"]
[EndTime "10:04:58 PST"]
[Termination "Alexsur1981 won by resignation"]

1. d4 {[%clk 0:02:57.3]} 1... g6 {[%clk 0:02:59.9]} 2. e4 {[%clk 0:02:57.2]}
2... Bg7 {[%clk 0:03:00.1]} 3. Nf3 {[%clk 0:02:57.7]} 3... d6 {[%clk 0:03:00.4]}
4. c4 {[%clk 0:02:56.8]} 4... e5 {[%clk 0:02:53.8]} 5. dxe5 {[%clk 0:02:56.4]}
5... dxe5 {[%clk 0:02:53.1]} 6. Qxd8+ {[%clk 0:02:57.3]} 6... Kxd8 {[%clk
0:02:53.4]} 7. Nc3 {[%clk 0:02:55]} 7... c6 {[%clk 0:02:50.8]} 8. Be3 {[%clk
0:02:52.3]} 8... f6 {[%clk 0:02:42.4]} 9. O-O-O+ {[%clk 0:02:52.1]} 9... Kc7
{[%clk 0:02:31.7]} 10. Be2 {[%clk 0:02:48.7]} 10... Be6 {[%clk 0:02:31.2]} 11.
Na4 {[%clk 0:02:42.9]} 11... Nd7 {[%clk 0:02:29.8]} 12. Rd2 {[%clk 0:02:38.1]}
12... Bh6 {[%clk 0:02:28.9]} 13. Bxh6 {[%clk 0:02:35.6]} 13... Nxh6 {[%clk
0:02:29.8]} 14. h3 {[%clk 0:02:36.1]} 14... Rhd8 {[%clk 0:02:23.1]} 15. Rhd1
{[%clk 0:02:36.2]} 15... Nf7 {[%clk 0:02:21.3]} 16. Kc2 {[%clk 0:02:30]} 16...
b6 {[%clk 0:02:15.3]} 17. Ne1 {[%clk 0:02:26.8]} 17... Nf8 {[%clk 0:02:10.6]}
18. Rxd8 {[%clk 0:02:26.1]} 18... Nxd8 {[%clk 0:02:10.9]} 19. b3 {[%clk
0:02:20.1]} 19... Bf7 {[%clk 0:02:10.5]} 20. Nd3 {[%clk 0:02:20.1]} 20... Nde6
{[%clk 0:02:10.4]} 21. Kc3 {[%clk 0:02:08.8]} 21... Nd7 {[%clk 0:02:04.3]} 22.
Bg4 {[%clk 0:02:08.5]} 22... h5 {[%clk 0:02:02.4]} 23. Bxe6 {[%clk 0:02:08.8]}
23... Bxe6 {[%clk 0:02:02.5]} 24. h4 {[%clk 0:02:09.1]} 24... Rg8 {[%clk
0:02:00.4]} 25. g3 {[%clk 0:02:08.4]} 25... Bg4 {[%clk 0:01:57]} 26. Rd2 {[%clk
0:02:07.7]} 26... Bf3 {[%clk 0:01:56.7]} 27. Ne1 {[%clk 0:01:41.8]} 27... Bxe4
{[%clk 0:01:56.2]} 28. Nb2 {[%clk 0:01:41.7]} 28... Bf5 {[%clk 0:01:54.4]} 29.
Ng2 {[%clk 0:01:40.2]} 29... Nc5 {[%clk 0:01:54.1]} 30. f3 {[%clk 0:01:39.4]}
30... g5 {[%clk 0:01:52.8]} 31. Ne3 {[%clk 0:01:35.7]} 31... Be6 {[%clk
0:01:52.7]} 32. hxg5 {[%clk 0:01:33.8]} 32... fxg5 {[%clk 0:01:41.4]} 33. b4
{[%clk 0:01:33.6]} 33... Nd7 {[%clk 0:01:39.5]} 34. Rh2 {[%clk 0:01:34.1]} 34...
Nf6 {[%clk 0:01:35.8]} 35. Nd3 {[%clk 0:01:33]} 35... e4 {[%clk 0:01:34.9]} 36.
fxe4 {[%clk 0:01:32]} 36... Nxe4+ {[%clk 0:01:34.2]} 37. Kd4 {[%clk 0:01:32.7]}
37... Nxg3 {[%clk 0:01:34.8]} 38. Ke5 {[%clk 0:01:30.9]} 38... Bc8 {[%clk
0:01:32.1]} 39. b5 {[%clk 0:01:28.6]} 39... Re8+ {[%clk 0:01:29.8]} 40. Kd4
{[%clk 0:01:29.2]} 40... Rxe3 {[%clk 0:01:29.8]} 41. Kxe3 {[%clk 0:01:26.7]}
41... Nf1+ {[%clk 0:01:29.6]} 42. Kf2 {[%clk 0:01:27.2]} 42... Nxh2 {[%clk
0:01:29.9]} 0-1

[Event "*** Titled Tuesday Blitz"]
[Site "Chess.com"]
[Date "2020.12.01"]
[Round "1"]
[White "CakeinSpace2002"]
[Black "Lukianoo"]
[Result "0-1"]
[WhiteElo "2385"]
[BlackElo "2765"]
[TimeControl "180+1"]
[EndTime "10:05:03 PST"]
[Termination "Lukianoo won by resignation"]

1. Nf3 {[%clk 0:03:00.9]} 1... Nf6 {[%clk 0:02:56.6]} 2. b3 {[%clk 0:03:00.7]}
2... e6 {[%clk 0:02:55.9]} 3. Bb2 {[%clk 0:03:00.5]} 3... a5 {[%clk 0:02:56.1]}
4. e3 {[%clk 0:02:58.9]} 4... a4 {[%clk 0:02:56]} 5. bxa4 {[%clk 0:02:59]} 5...
Rxa4 {[%clk 0:02:54.5]} 6. c4 {[%clk 0:02:59.1]} 6... Ra8 {[%clk 0:02:53.4]} 7.
a3 {[%clk 0:02:56.7]} 7... Be7 {[%clk 0:02:53]} 8. g4 {[%clk 0:02:56.3]} 8...
O-O {[%clk 0:02:51.6]} 9. g5 {[%clk 0:02:54.8]} 9... Ne4 {[%clk 0:02:51.6]} 10.
h4 {[%clk 0:02:54.1]} 10... d5 {[%clk 0:02:51.3]} 11. Bd3 {[%clk 0:02:52.1]}
11... c5 {[%clk 0:02:48.5]} 12. Qc2 {[%clk 0:02:50.6]} 12... f5 {[%clk
0:02:44.8]} 13. gxf6 {[%clk 0:02:50.1]} 13... Bxf6 {[%clk 0:02:44.5]} 14. cxd5
{[%clk 0:02:43.4]} 14... Bxb2 {[%clk 0:02:40.6]} 15. Qxb2 {[%clk 0:02:39.2]}
15... exd5 {[%clk 0:02:39.8]} 16. Ng5 {[%clk 0:02:38.6]} 16... Bf5 {[%clk
0:02:20]} 17. Bxe4 {[%clk 0:02:24.4]} 17... Bxe4 {[%clk 0:02:18.5]} 18. Rg1
{[%clk 0:02:15.8]} 18... Qe7 {[%clk 0:02:11.6]} 19. Nxe4 {[%clk 0:02:08.5]}
19... dxe4 {[%clk 0:02:10.5]} 20. Nc3 {[%clk 0:02:08.8]} 20... Nc6 {[%clk
0:02:07.9]} 21. Nxe4 {[%clk 0:01:42.7]} 21... Ne5 {[%clk 0:02:07.2]} 22. Ke2
{[%clk 0:01:42.3]} 22... Rae8 {[%clk 0:01:54.9]} 23. Rg2 {[%clk 0:01:12.9]}
23... Qf7 {[%clk 0:01:43.1]} 24. Ng5 {[%clk 0:01:04.1]} 24... Qc4+ {[%clk
0:01:39.4]} 25. Kd1 {[%clk 0:01:02]} 25... Qf1+ {[%clk 0:01:36.9]} 26. Kc2
{[%clk 0:00:58.4]} 26... Qxg2 {[%clk 0:01:36.8]} 27. f4 {[%clk 0:00:59.1]} 27...
Nc4 {[%clk 0:01:31.2]} 28. Qc3 {[%clk 0:00:57.3]} 28... Nxe3+ {[%clk 0:01:29.7]}
0-1